Cogmind - Beta 10.1 @@@ ROGUE MODE // 2020.10.08 @ 11:20:06 Player: Horse Result: Destroyed by G-67 Veteran with Plasma Rifle Performance ------------- Evolutions (5) 2500 Regions Visited (19) 3800 Robots Destroyed (213) 1065 Value Destroyed (9023) 9023 Prototype IDs (61) 1220 Alien Tech Used (1) 200 Bonus (4688) 4688 TOTAL SCORE: 22496 Bonus ------- High Alert Combat Kills 361 Follower Combat Kills 556 Entered Garrisons 1000 Used RIF Installer 2500 Aligned with FarCom 300 Met Zhirov 300 Friendly Fire -329 Cogmind --------- Core Integrity 0/1000 Matter 119/300 Energy 100/100 System Corruption 14% Temperature Cool (0) Movement Hovering (38) Location -4/Proximity Caves Parts ------- > --- POWER (1) -------- (None) > --- PROPULSION (2) --- Cooled Gravmag System Cooled Gravmag System > --- UTILITY (12) ----- Fusion Compressor Medium Storage Unit Enhanced Optical Array Long-range Terrain Scanner Advanced Terrain Scan Processor 0b10 Decoder Chip [Looter] 0b10 Decoder Chip [Scout] Advanced ECM Suite Advanced Hacking Suite Relay Coupler [NC] (24) Relay Coupler [Duelist] (2) > --- WEAPON (2) ------- Phasing Sabre > --- INVENTORY (8) ---- Cooled Gravmag System Particle Accelerator Makeshift Transmission Jammer Cooled Plasma Cannon Improved Datajack Master Tearclaws Peak State ------------ > --- POWER ------------ Micro Fission Core > --- PROPULSION ------- Flexi-carbon Leg Flexi-carbon Leg > --- UTILITY ---------- Medium Storage Unit High-capacity Storage Unit Lightpack 2.0 Enhanced Optical Array Advanced Terrain Scan Processor Layered Medium Armor Plating Advanced Shield Generator Hacking Suite Relay Coupler [Grunt] Relay Coupler [Duelist] Relay Coupler [Sentry] > --- WEAPON ----------- Cooled Plasma Cannon Ion Burst Cannon > --- INVENTORY -------- Flexi-carbon Leg Advanced Heat Sink Improved Cooling System Medium Storage Unit Medium Storage Unit Compact Battery Matter Compressor Long-range Terrain Scanner Advanced Terrain Scan Processor Transmission Jammer Improved Core Shielding Insulated Plating Advanced Shield Generator Improved Hacking Suite Relay Coupler [NC] Relay Coupler [ARC] Relay Coupler [Brawler] Relay Coupler [Demolisher] Improved Component Analysis Suite Dynamic Insulation System AWS/Thermal Cooled Plasma Cannon Cooled Plasma Cannon AWS/Gauss Improved Proton Missile Launcher Scatter Rocket Array Improved Datajack Great Axe [Rating: 96] Favorites ----------- Power Micro Fission Core Engine Light Deuterium Engine Power Core Micro Fission Core Reactor Heavy Antimatter Reactor Propulsion Aluminum Leg Treads Spiked Medium Treads Leg Aluminum Leg Hover Unit Cooled Gravmag System Utility Medium Storage Unit Device Transmission Jammer Storage Medium Storage Unit Processor Enhanced Optical Array Hackware System Shield Protection Improved Core Shielding Weapon Great Axe Energy Gun Particle Gun Energy Cannon Cooled Plasma Cannon Ballistic Gun Enhanced Autogun Ballistic Cannon Mini Assault Cannon Launcher Heavy Rocket Launcher Special Weapon Remote Datajack Slashing Weapon Great Axe Piercing Weapon Spear Special Melee Weapon Improved Datajack Build | -11 -10 -10 -10 -9 -8 -8 -8 -8 -7 -7 -7 -7 -6 -6 -5 -5 -5 -5 -4 ------- Run | Scr Mat Min Exi Min Mat Gar Mat Gar Fac Gar Fac Gar Fac Gar Fac Upp Upp Zhi Pro Slots Evolved 10 | . . . . . 4 . . . 2 . . . 2 . 2 . . . . Power . | . . . . . . . . . . . . . . . . . . . . Propulsion . | . . . . . . . . . . . . . . . . . . . . Utility 10 | . . . . . 4 . . . 2 . . . 2 . 2 . . . . Weapon . | . . . . . . . . . . . . . . . . . . . . Parts Attached 353 | 7 1 2 3 . 13 22 17 4 20 17 20 16 33 40 90 4 11 19 14 Power 27 | 1 . 1 . . 2 1 3 . 2 2 2 2 . 3 5 . . 3 . Engine 12 | 1 . 1 . . 2 1 2 . 1 1 . 1 . 2 . . . . . Core 14 | . . . . . . . 1 . 1 1 2 1 . 1 5 . . 2 . Reactor 1 | . . . . . . . . . . . . . . . . . . 1 . Propulsion 50 | 2 . 1 . . 1 4 4 . 4 3 . . 5 2 16 . 2 4 2 Treads 9 | . . . . . . 2 . . . . . . . . 3 . 2 2 . Leg 34 | 2 . 1 . . 1 2 4 . 3 3 . . 5 2 11 . . . . Wheel . | . . . . . . . . . . . . . . . . . . . . Hover 7 | . . . . . . . . . 1 . . . . . 2 . . 2 2 Flight . | . . . . . . . . . . . . . . . . . . . . Utility 137 | 2 . . 2 . 4 8 6 1 8 2 10 5 15 18 34 2 3 9 8 Device 50 | . . . . . 1 2 4 . 3 2 2 2 4 7 10 1 2 5 5 Storage 26 | 2 . . 2 . . 3 . . 3 . 3 2 2 . 6 . 1 1 1 Processor 10 | . . . . . 1 . 2 . 1 . 1 . 1 1 . 1 . 1 1 Hackware 23 | . . . . . . . . . 1 . 2 . 5 4 10 . . . 1 Protection 28 | . . . . . 2 3 . 1 . . 2 1 3 6 8 . . 2 . Artifact . | . . . . . . . . . . . . . . . . . . . . Weapon 139 | 2 1 . 1 . 6 9 4 3 6 10 8 9 13 17 35 2 6 3 4 Energy Gun 25 | . . . 1 . 2 6 1 . 2 1 4 5 . . 1 1 1 . . Energy Cannon 17 | . . . . . . . . . . . . . . 1 11 . 3 1 1 Ballistic Gun 29 | 2 1 . . . 3 2 3 3 3 3 . 1 2 3 2 . . . 1 Ballistic Cannon 12 | . . . . . . . . . 1 3 1 2 . 3 2 . . . . Launcher 20 | . . . . . 1 1 . . . 3 1 . 1 2 7 1 1 1 1 Special Weapon 5 | . . . . . . . . . . . 1 1 2 1 . . . . . Impact Weapon . | . . . . . . . . . . . . . . . . . . . . Slashing Weapon 15 | . . . . . . . . . . . . . 4 3 5 . 1 1 1 Piercing Weapon 2 | . . . . . . . . . . . . . 2 . . . . . . Special Melee Weapon 14 | . . . . . . . . . . . 1 . 2 4 7 . . . . Unidentified Prototypes 10 | . . . . . . . 1 . 3 . 1 . . . . . . 5 . Parts Lost 73 | . . 3 . . 3 10 . . 1 8 1 3 . 5 26 1 5 . 7 Power 12 | . . 1 . . 1 1 . . 1 2 1 1 . 2 1 . . . 1 Propulsion 15 | . . 1 . . . 3 . . . 2 . . . . 9 . . . . Utility 25 | . . . . . . 4 . . . 1 . 1 . 2 12 . 2 . 3 Weapon 21 | . . 1 . . 2 2 . . . 3 . 1 . 1 4 1 3 . 3 Highest Loss Streak 5 | . . 3 . . 2 5 . . 1 5 1 2 . 2 5 1 5 . 5 Average Slot Usage (%) 91 | . 100 87 93 100 79 82 99 95 99 93 92 91 92 92 89 93 93 91 92 Engine 4 | . 14 12 14 14 9 8 8 . 1 2 . 1 6 4 1 . . . . Core 2 | . . . . . . . . 9 5 3 6 5 . 1 3 5 5 5 5 Treads 2 | . . . . . . 3 2 . . . . . . . 2 5 8 9 8 Leg 11 | . 28 26 28 28 17 9 15 18 14 14 15 15 12 13 5 . . . . Device 6 | . . . . . 3 13 10 6 9 1 3 4 1 8 6 11 8 11 8 Storage 18 | . 28 28 28 28 18 16 18 18 18 23 13 14 19 20 16 17 19 18 15 Processor 12 | . . . . . 6 9 24 27 26 27 13 7 6 6 10 9 11 14 17 Hackware 11 | . . . . . . . . . 1 7 18 18 27 16 22 19 17 13 11 Protection 4 | . . . . . 7 10 . 2 3 . 3 6 2 6 4 11 7 8 8 Energy Gun 2 | . . . 8 14 5 4 . . . . 4 9 . . . 4 4 . . Ballistic Gun 5 | . 28 20 14 14 11 6 17 14 14 4 . 1 1 1 1 . . . . Ballistic Cannon 1 | . . . . . . . . . . 3 4 2 2 3 . . . . . Slashing Weapon 1 | . . . . . . . . . . . . . 3 2 2 . . 2 1 Naked Turns . | . . . . . . . . . . . . . . . . . . . . Heaviest Build 84 | 13 14 15 26 26 40 38 31 32 43 44 38 47 47 63 84 84 83 74 74 Greatest Support 70 | 20 20 20 20 20 20 40 40 40 40 50 49 40 54 45 70 70 70 56 56 Greatest Overweight (x) 27 | . . 1 1 1 3 3 2 . 1 . . 1 1 1 27 1 2 3 2 Average Overweight (x) . | . . . . 1 1 1 . . . . . . . . . 1 1 1 . Largest Inventory Capacity 36 | 8 8 8 12 12 12 12 12 12 16 16 36 32 32 32 36 20 20 20 20 Average Capacity 20 | 5 8 8 8 12 12 11 12 12 13 16 24 27 31 32 26 20 20 19 18 Most Carried 36 | 2 3 5 9 8 12 12 12 12 16 16 24 32 32 32 36 20 20 20 20 Average Carried 18 | 1 2 3 6 8 10 10 11 11 12 14 19 26 31 31 24 18 19 19 16 Final Capacity 32 | 8 8 8 12 12 12 12 12 12 16 16 24 32 32 32 20 20 20 20 8 Final Carried 32 | 2 3 5 8 8 11 11 12 12 16 16 24 32 32 32 19 20 20 20 7 Class Distribution -------------------- 26% | Bothacker-Mutant 24% | Mutant 10% | Commander-Mutant 9% | Hauler-Mutant 9% | Scavenger-Mutant 5% | Botlord-Mutant 3% | Botlord-Assassin 3% | Bothacker-Assassin Dominant Class ---------------- Mutant | -10/Materials Mutant | -10/Mines Mutant | -10/Exiles Mutant | -9/Mines Mutant | -8/Materials Scavenger-Mutant | -8/Garrison Mutant | -8/Materials Commander-Mutant | -8/Garrison Commander-Mutant | -7/Factory Mutant | -7/Garrison Hauler-Mutant | -7/Factory Hauler-Mutant | -7/Garrison Bothacker-Mutant | -6/Factory Bothacker-Mutant | -6/Garrison Bothacker-Mutant | -5/Factory Bothacker-Mutant | -5/Upper Caves Bothacker-Skirmisher | -5/Upper Caves Derelict-Mutant | -5/Zhirov Hauler-Mutant | -4/Proximity Caves Resources | -11 -10 -10 -10 -9 -8 -8 -8 -8 -7 -7 -7 -7 -6 -6 -5 -5 -5 -5 -4 ----------- Run | Scr Mat Min Exi Min Mat Gar Mat Gar Fac Gar Fac Gar Fac Gar Fac Upp Upp Zhi Pro Matter Collected 6834 | 276 50 41 . . 530 402 646 130 370 530 196 311 358 828 1481 144 299 242 . Remotely . | . . . . . . . . . . . . . . . . . . . . Salvage Created 8633 | 61 105 121 . . 738 475 702 426 894 763 200 337 444 722 1971 130 390 . 154 Parts 440 | 2 4 4 . . 59 32 41 27 47 28 12 18 18 30 84 6 24 . 4 Haulers Intercepted 4 | . . . . . . . . . 3 . 1 . . . . . . . . Recyclers Shooed 3 | . . . . . 1 . . . . . 1 . . . 1 . . . . Parts Field Recycled . | . . . . . . . . . . . . . . . . . . . . Retrieved Matter . | . . . . . . . . . . . . . . . . . . . . Parts Self-Destructed 19 | . . . . . . . . . . . . . . . . 5 13 . 1 Prevented 10 | . . . . . . . . . . . . . . . . 7 . . 3 Kills | -11 -10 -10 -10 -9 -8 -8 -8 -8 -7 -7 -7 -7 -6 -6 -5 -5 -5 -5 -4 ------- Run | Scr Mat Min Exi Min Mat Gar Mat Gar Fac Gar Fac Gar Fac Gar Fac Upp Upp Zhi Pro Combat Hostiles Destroyed 169 | . 2 . . . 17 14 11 11 11 18 3 6 8 13 34 5 14 . 2 Melee 11 | . . . . . . . . . . . . . 3 7 1 . . . . Guns 86 | . 2 . . . 9 13 11 11 9 8 . 2 1 1 14 1 4 . . Cannons 24 | . . . . . . . . . . 4 1 2 1 5 7 . 4 . . AOE 43 | . . . . . 8 1 . . 2 6 2 . 3 . 10 4 6 . 1 Classes Destroyed 16 | 1 1 1 . . 5 . 1 . 3 . 1 . . 1 . . 2 . . Worker 9 | . . . . . 2 . . . 3 . . . 1 . 3 . . . . Builder 12 | . . 1 . . 5 . . . 1 . . . 2 . 3 . . . . Tunneler 2 | . . . . . . . . . 1 . 1 . . . . . . . . Hauler 4 | . . . . . . . . . 3 . 1 . . . . . . . . Recycler 9 | 1 . 1 . . 3 . 2 . 1 . 1 . . . . . . . . Watcher 6 | . . . . . 1 . 3 . 2 . . . . . . . . . . Swarmer 44 | . . . . . 10 7 4 4 . . 2 . . 1 4 4 8 . . Grunt 71 | . 2 . . . 5 6 2 5 8 14 . 2 3 8 15 . 1 . . Brawler 4 | . . . . . . . 1 . . 1 . . . . 2 . . . . Duelist 3 | . . . . . . . . . 1 1 . . . . 1 . . . . Sentry 22 | . . . . . 1 2 3 2 1 1 . 3 1 3 4 . 1 . . Hunter 13 | . . . . . 1 . 1 . 2 1 . . 2 . 3 1 . . 2 Programmer 11 | . . . . . . . . . . . 1 1 2 . 5 . 2 . . Behemoth 1 | . . . . . . . . . . . . . . 1 . . . . . Master Thief 1 | . . . . . . . . . . . . . . . . . 1 . . Mutant 1 | . . . . . . . . . . . . . . . . . 1 . . Best Kill Streak 16 | 1 2 2 . . 13 5 4 6 16 5 2 2 4 3 9 4 5 . 2 Combat Bots Only 9 | . 2 . . . 9 5 3 6 7 5 2 2 2 3 7 4 5 . 2 Max Kills in Single Turn 7 | 1 1 1 . . 4 1 1 2 7 2 2 1 4 1 3 4 3 . 1 Gunslinging 1 | . . . . . . . . 1 . . . . . . . . . . . Exploded 4 | . . . . . 3 1 . . 2 2 2 . 2 . 2 4 3 . 1 Melee 1 | . . . . . . . . . . . . . 1 1 1 . . . . Uniques/NPCs Destroyed . | . . . . . . . . . . . . . . . . . . . . Combat | -11 -10 -10 -10 -9 -8 -8 -8 -8 -7 -7 -7 -7 -6 -6 -5 -5 -5 -5 -4 -------- Run | Scr Mat Min Exi Min Mat Gar Mat Gar Fac Gar Fac Gar Fac Gar Fac Upp Upp Zhi Pro Damage Taken 13617 | . 154 288 . . 760 1010 208 247 488 1272 160 851 420 1325 4705 388 600 . 741 Core 2154 | . 39 70 . . 128 149 6 33 50 329 25 130 107 88 898 . 26 . 76 Absorbed by Shields 780 | . . . . . . . . 40 . 41 . . . 245 212 108 134 . . Reduced by Siege Mode 30 | . . . . . . . . . . . . . . . . 30 . . . Core Remaining (%) 59 | 100 . . . 56 . . . 42 . . . 23 . 77 . . . . . Volleys Fired 463 | 3 10 7 . . 57 54 50 10 28 55 15 30 8 37 53 8 29 . 9 Largest 2 | 2 2 1 . . 2 2 2 2 2 2 2 2 2 2 2 2 2 . 1 Hottest 163 | 40 40 20 . . 85 88 50 50 50 73 110 128 76 130 148 100 163 . 43 Shots Fired 853 | 6 20 7 . . 79 79 100 38 79 102 16 49 11 52 142 14 43 . 16 Gun 637 | 6 20 7 . . 71 77 100 38 78 67 6 41 3 12 80 7 16 . 8 Cannon 167 | . . . . . . . . . 1 32 5 7 5 33 52 6 24 . 2 Launcher 43 | . . . . . 8 2 . . . 3 5 . 2 3 10 1 3 . 6 Special 6 | . . . . . . . . . . . . 1 1 4 . . . . . Kinetic 560 | 6 20 7 . . 52 54 100 38 55 93 5 8 8 36 70 . . . 8 Thermal 166 | . . . . . 5 20 . . 24 6 . 8 . 9 62 6 24 . 2 Explosive 27 | . . . . . 8 2 . . . 3 5 . 2 . 3 1 3 . . Electromagnetic 94 | . . . . . 14 3 . . . . 6 32 . 3 7 7 16 . 6 Robot Hit Streak 24 | 4 5 3 . . 10 20 18 24 14 13 4 11 7 12 18 10 7 . 5 Robot Miss Streak 10 | 1 2 2 . . 3 3 4 1 6 4 2 2 1 6 4 2 10 . 2 Penetration Max 1 | . . . . . . . . . . . . . . 1 1 . . . . Secondary Targets 6 | . 1 . . . . 3 . 2 . . . . . . . . . . . Max Gunslinging Chain 1 | . 1 . . . . 1 . 1 . . . . . . . . . . . Autonomous 159 | . . . . . 1 14 . 18 24 26 . . 2 . 66 . . . 8 Shots Hit Robots 667 | 4 14 4 . . 46 53 62 32 57 71 10 36 27 63 145 8 26 . 9 Core Hits 389 | 2 6 3 . . 41 27 30 15 32 34 6 16 18 28 80 12 32 . 7 Critical Hits 7 | . . . . . . . . 1 2 . . . . 1 3 . . . . Critical Kills 2 | . . . . . . . . . . . . . . 1 1 . . . . Critical Parts Destroyed 4 | . . . . . . . . 1 2 . . . . . 1 . . . . Melee Attacks 175 | . . . . . . . . . . . 2 . 55 42 69 . 5 . 2 Impact . | . . . . . . . . . . . . . . . . . . . . Slashing 91 | . . . . . . . . . . . . . 31 29 24 . 5 . 2 Piercing 16 | . . . . . . . . . . . . . 16 . . . . . . Sneak Attacks 32 | . . . . . . . . . . . 1 . 11 11 9 . . . . Combat Hostiles 21 | . . . . . . . . . . . 1 . 8 11 1 . . . . Follow-up Attacks . | . . . . . . . . . . . . . . . . . . . . Damage Inflicted 22516 | 31 136 82 . . 1591 1050 1091 755 2313 2153 524 505 1944 2340 5259 514 1738 . 490 Guns 9703 | 31 136 82 . . 704 948 1091 755 1322 1126 50 379 78 193 2284 126 245 . 153 Cannons 3199 | . . . . . . . . . . 513 82 126 30 679 993 93 619 . 64 Explosions 6465 | . . . . . 887 102 . . 991 514 392 . 499 104 1584 295 874 . 223 Melee 3145 | . . . . . . . . . . . . . 1337 1364 398 . . . 46 Ramming 4 | . . . . . . . . . . . . . . . . . . . 4 Kinetic 8367 | 31 136 82 . . 512 540 1091 755 689 1493 82 126 108 643 1926 . . . 153 Thermal 5270 | . . . . . 33 356 . . 1624 146 168 114 . 229 1824 93 619 . 64 Explosive 3923 | . . . . . 887 102 . . . 514 224 . 499 . 528 295 874 . . Electromagnetic 1807 | . . . . . 159 52 . . . . 50 265 . 104 583 126 245 . 223 Impact . | . . . . . . . . . . . . . . . . . . . . Slashing 3145 | . . . . . . . . . . . . . 1337 1364 398 . . . 46 Piercing . | . . . . . . . . . . . . . . . . . . . . Highest Corruption 14 | . . . . . . . . . 1 1 2 2 . . 14 14 14 14 14 Average Corruption 7 | . . . . . . . . . 1 1 1 2 . . 10 14 14 14 14 Corruption Purged . | . . . . . . . . . . . . . . . . . . . . Effects 208 | . . . . . . . . . 3 . 7 3 . . 87 35 31 22 20 Message Errors 37 | . . . . . . . . . 1 . 3 1 . . 18 5 2 4 3 Matter Fused 35 | . . . . . . . . . . . . . . . 10 10 6 6 3 Heat Flow Errors 25 | . . . . . . . . . . . . . . . 11 5 3 4 2 Energy Discharges 24 | . . . . . . . . . 1 . 3 . . . 10 1 5 2 2 Parts Rejected 1 | . . . . . . . . . . . . . . . 1 . . . . Data Loss (minor) 18 | . . . . . . . . . . . 1 1 . . 6 1 2 4 3 Data Loss (major) 8 | . . . . . . . . . . . . . . . 4 1 2 1 . Misfires 6 | . . . . . . . . . . . . . . . 4 2 . . . Alerts 3 | . . . . . . . . . . . . . . . 1 1 1 . . Misdirections 19 | . . . . . . . . . . . . . . . 7 5 1 1 5 Targeting Errors 26 | . . . . . . . . . 1 . . 1 . . 13 3 7 . 1 Weapon Failures 6 | . . . . . . . . . . . . . . . 2 1 2 . 1 Overload Shots 7 | . . . . . . . . . . . . . . . 2 . 5 . . Overflow Damage 1060 | . . . . . 22 . . . 168 61 130 . 278 213 58 16 105 . 9 Projectiles 96 | . . . . . . . . . . 19 5 . . . . . 72 . . Explosions 499 | . . . . . 22 . . . 168 42 125 . 36 . 48 16 33 . 9 Melee 465 | . . . . . . . . . . . . . 242 213 10 . . . . Knockbacks 13 | . . . . . . . . . . 5 . . . 8 . . . . . Impact . | . . . . . . . . . . . . . . . . . . . . Kinetic 13 | . . . . . . . . . . 5 . . . 8 . . . . . Secondary . | . . . . . . . . . . . . . . . . . . . . Self-Inflicted Damage 232 | . . . . . 20 22 . . 46 26 . . 57 . . 25 36 . . Shots 8 | . . . . . 1 1 . . 1 1 . . 1 . . 1 2 . . Rammed 1 | . . . . . . . . . . . . . . . . . . . 1 Targets Rammed 1 | . . . . . . . . . . . . . . . . . . . 1 Kicked . | . . . . . . . . . . . . . . . . . . . . Crushed . | . . . . . . . . . . . . . . . . . . . . Highest Temperature 339 | . 24 . . . 72 231 18 29 24 54 27 212 3 169 263 251 339 267 208 Average Temperature 65 | . 9 . . . 25 128 12 9 6 15 10 60 3 46 69 85 112 126 89 Received Heat Transfer 3523 | . 87 . . . 225 387 54 66 165 483 39 300 138 334 1086 . 81 . 78 Effects 1 | . . . . . . . . . . . . . . . . . 1 . . Energy Bleed 1 | . . . . . . . . . . . . . . . . . 1 . . Siege Activations 3 | . . . . . . . . . . . . . . . 1 2 . . . Total Turns 30 | . . . . . . . . . . . . . . . 5 25 . . . Longest Duration 14 | . . . . . . . . . . . . . . . 5 14 . . . Robots Corrupted 4 | . . . . . . . . . . . . 2 . . 1 . . . 1 Combat Hostiles 4 | . . . . . . . . . . . . 2 . . 1 . . . 1 Parts Fried 11 | . . . . . 1 . . . . . . 6 . . 1 1 1 . 1 Impact Corruptions . | . . . . . . . . . . . . . . . . . . . . Robots Melted 1 | . . . . . . . . . . . . . . . 1 . . . . Combat Hostiles 1 | . . . . . . . . . . . . . . . 1 . . . . Parts Melted 9 | . . . . . . 2 . . . . . . . . 4 . 3 . . Heat Transferred 6167 | . . . . . 74 481 . . 1514 185 100 250 . 275 2318 150 720 . 100 Parts Sabotaged 3 | . . . . . . . . . . . . . . . 3 . . . . Parts Stolen 2 | . . . . . . . . . . . . . . . . . 1 . 1 Parts Stripped . | . . . . . . . . . . . . . . . . . . . . Power Chain Reactions 3 | . . . . . . . . . . . . . . . 3 . . . . Missiles Intercepted . | . . . . . . . . . . . . . . . . . . . . Alert | -11 -10 -10 -10 -9 -8 -8 -8 -8 -7 -7 -7 -7 -6 -6 -5 -5 -5 -5 -4 ------- Run | Scr Mat Min Exi Min Mat Gar Mat Gar Fac Gar Fac Gar Fac Gar Fac Upp Upp Zhi Pro Peak Influence 740 | 5 64 24 . . 396 675 328 451 740 650 365 110 387 493 568 . . . . Initial 413 | . 3 24 . . . 257 328 145 236 413 340 . 57 193 258 . . . . Average 263 | 1 35 14 . . 96 476 141 310 374 522 220 42 154 319 365 . . . . Maximum Alert Level 3 | . . . . . 1 2 1 2 3 2 1 . 1 2 2 . . . . Low Security (%) 39 | 100 100 100 . 100 80 . 77 22 9 . 60 100 65 3 2 . . . . Level 1 36 | . . . . . 19 27 22 49 60 . 39 . 34 72 59 . . . . Level 2 22 | . . . . . . 72 . 27 15 100 . . . 23 38 . . . . Level 3 . | . . . . . . . . . 14 . . . . . . . . . . Level 4 . | . . . . . . . . . . . . . . . . . . . . Level 5 . | . . . . . . . . . . . . . . . . . . . . High Security . | . . . . . . . . . . . . . . . . . . . . Max Security . | . . . . . . . . . . . . . . . . . . . . Squads Dispatched 21 | . . . . . 2 . 1 . 4 . 2 . 5 . 7 . . . . Investigation 4 | . . . . . . . . . 1 . . . 1 . 2 . . . . Extermination 5 | . . . . . . . . . . . 1 . 2 . 2 . . . . Reinforcement 8 | . . . . . 1 . 1 . 2 . 1 . 2 . 1 . . . . Assault 3 | . . . . . . . . . 1 . . . . . 2 . . . . Garrison 1 | . . . . . 1 . . . . . . . . . . . . . . Intercept . | . . . . . . . . . . . . . . . . . . . . Construction Impeded 3 | . . . . . 1 . . . 1 . . . 1 . . . . . . Haulers Reinforced 3 | . . . . . . . . . 1 . 1 . . . 1 . . . . Stealth | -11 -10 -10 -10 -9 -8 -8 -8 -8 -7 -7 -7 -7 -6 -6 -5 -5 -5 -5 -4 --------- Run | Scr Mat Min Exi Min Mat Gar Mat Gar Fac Gar Fac Gar Fac Gar Fac Upp Upp Zhi Pro Distress Signals 13 | . . . . . 1 . 2 . 2 . 1 . 1 . 6 . . . . Communications Jammed 116 | . . . . . 64 . 35 . 4 . . . . . 13 . . . . Distress Signals 116 | . . . . . 64 . 35 . 4 . . . . . 13 . . . . Times Spotted 319 | . 2 4 . . 30 14 25 14 22 29 7 8 16 28 86 5 12 . 17 Peak Tracking Total 14 | . 2 2 . . 8 6 5 6 7 7 2 3 3 5 11 4 5 . 14 Tactical Retreats 33 | . . . . . 3 2 . 1 1 7 1 2 2 4 8 . . . 2 Traps | -11 -10 -10 -10 -9 -8 -8 -8 -8 -7 -7 -7 -7 -6 -6 -5 -5 -5 -5 -4 ------- Run | Scr Mat Min Exi Min Mat Gar Mat Gar Fac Gar Fac Gar Fac Gar Fac Upp Upp Zhi Pro Traps Triggered 6 | . . . . . . 2 . 1 . 2 . 1 . . . . . . . Indirectly . | . . . . . . . . . . . . . . . . . . . . Trap Hack Attempts . | . . . . . . . . . . . . . . . . . . . . Triggered . | . . . . . . . . . . . . . . . . . . . . Disarmed . | . . . . . . . . . . . . . . . . . . . . Reprogrammed . | . . . . . . . . . . . . . . . . . . . . Reused . | . . . . . . . . . . . . . . . . . . . . Traps Extracted . | . . . . . . . . . . . . . . . . . . . . Installed . | . . . . . . . . . . . . . . . . . . . . Triggered 2 | . . . . . . . . . . . . . . . . 2 . . . Machines | -11 -10 -10 -10 -9 -8 -8 -8 -8 -7 -7 -7 -7 -6 -6 -5 -5 -5 -5 -4 ---------- Run | Scr Mat Min Exi Min Mat Gar Mat Gar Fac Gar Fac Gar Fac Gar Fac Upp Upp Zhi Pro Machines Disabled 34 | . . . . . . . 1 . 4 1 8 1 6 3 9 . 1 . . Max in Single Turn 4 | . . . . . . . 1 . 4 1 4 1 2 1 4 . 1 . . Garrison Access 1 | . . . . . . . . . . . . . . . 1 . . . . Garrison Relay 6 | . . . . . . . . . . 1 . 2 . 3 . . . . . Machines Sabotaged . | . . . . . . . . . . . . . . . . . . . . Garrisons Compromised . | . . . . . . . . . . . . . . . . . . . . Overloaded Fab Kills . | . . . . . . . . . . . . . . . . . . . . Fab Network Shutdowns 1 | . . . . . . . . . 1 . . . . . . . . . . Hacking | -11 -10 -10 -10 -9 -8 -8 -8 -8 -7 -7 -7 -7 -6 -6 -5 -5 -5 -5 -4 --------- Run | Scr Mat Min Exi Min Mat Gar Mat Gar Fac Gar Fac Gar Fac Gar Fac Upp Upp Zhi Pro Machines Accessed 75 | . 2 . 1 . 8 . 11 . 8 . 6 . 18 . 15 1 1 4 . Terminals 39 | . 2 . . . 5 . 9 . 2 . 2 . 10 . 8 1 . . . Fabricators 8 | . . . . . . . . . 3 . 2 . 2 . 1 . . . . Repair Stations 6 | . . . . . 1 . . . 1 . 1 . 1 . 2 . . . . Recycling Units 3 | . . . . . . . 1 . . . . . 1 . 1 . . . . Scanalyzers 5 | . . . . . 1 . . . 1 . . . 2 . 1 . . . . Garrison Access 8 | . . . . . 1 . 1 . 1 . 1 . 2 . 2 . . . . Total Hacks 239 | . 9 . 1 . 23 . 33 . 23 . 22 . 75 . 33 2 1 17 . Successful 163 | . 4 . 1 . 16 . 25 . 16 . 11 . 49 . 21 2 1 17 . Failed 75 | . 5 . . . 7 . 7 . 7 . 11 . 26 . 12 . . . . Catastrophic 5 | . . . . . . . . . . . 2 . 1 . 2 . . . . Database Lockouts 1 | . . . . . . . 1 . . . . . . . . . . . . Manual 104 | . 9 . 1 . 17 . 20 . 1 . 11 . 28 . 17 . . . . Terminals 138 | . 9 . . . 17 . 28 . 6 . 8 . 49 . 19 2 . . . Fabricators 20 | . . . . . . . . . 6 . 8 . 4 . 2 . . . . Repair Stations 19 | . . . . . 2 . . . 4 . 4 . 5 . 4 . . . . Recycling Units 7 | . . . . . . . 3 . . . . . 3 . 1 . . . . Scanalyzers 17 | . . . . . 2 . . . 5 . . . 7 . 3 . . . . Garrison Access 19 | . . . . . 2 . 2 . 2 . 2 . 7 . 4 . . . . Terminal Hacks 76 | . 1 . 1 . 4 . 15 . 2 . 2 . 26 . 5 2 1 17 . Record 8 | . . . . . . . 1 . . . . . . . . 2 . 5 . Part Schematic 12 | . . . . . 1 . 1 . . . . . 6 . . . . 4 . Robot Schematic 2 | . . . . . . . . . . . . . 2 . . . . . . Robot Analysis 8 | . . . . . 1 . . . 1 . . . 2 . . . . 4 . Prototype ID Bank 10 | . . . . . . . 4 . . . . . 1 . 1 . . 4 . Open Door 1 | . . . . . . . . . . . . . . . . . 1 . . Emergency Access Points 3 | . . . . . . . 1 . . . . . 2 . . . . . . Machine Index 1 | . . . . . . . . . . . . . 1 . . . . . . Terminal Index 3 | . 1 . . . . . 1 . . . . . 1 . . . . . . Fabricator Index 1 | . . . . . . . . . 1 . . . . . . . . . . Garrison Index 2 | . . . . . 1 . . . . . . . 1 . . . . . . Unreport Threat 8 | . . . . . 1 . 2 . . . 1 . 1 . 3 . . . . Locate Traps 7 | . . . . . . . . . . . 1 . 5 . 1 . . . . Dispatch Records 1 | . . . . . . . 1 . . . . . . . . . . . . Patrol Status 2 | . . . . . . . . . . . . . 2 . . . . . . Hauler Manifests 1 | . . . . . . . 1 . . . . . . . . . . . . Registered Components 2 | . . . . . . . 1 . . . . . 1 . . . . . . Registered Prototypes 1 | . . . . . . . . . . . . . 1 . . . . . . Zone Layout 2 | . . . . . . . 2 . . . . . . . . . . . . EX-Prototype ID Bank 1 | . . . 1 . . . . . . . . . . . . . . . . Fabricator Hacks 9 | . . . . . . . . . 3 . 3 . 1 . 2 . . . . Network Status 1 | . . . . . . . . . . . 1 . . . . . . . . Load Schematic 3 | . . . . . . . . . 1 . 1 . . . 1 . . . . Build 5 | . . . . . . . . . 2 . 1 . 1 . 1 . . . . Repair Station Hacks 11 | . . . . . 2 . . . 4 . 1 . 2 . 2 . . . . Scan Component 6 | . . . . . 1 . . . 2 . 1 . 1 . 1 . . . . Repair 5 | . . . . . 1 . . . 2 . . . 1 . 1 . . . . Recycling Unit Hacks 2 | . . . . . . . 1 . . . . . 1 . . . . . . Retrieve Components 2 | . . . . . . . 1 . . . . . 1 . . . . . . Scanalyzer 12 | . . . . . 2 . . . 4 . . . 4 . 2 . . . . Insert Component 7 | . . . . . 1 . . . 3 . . . 2 . 1 . . . . Analyze 5 | . . . . . 1 . . . 1 . . . 2 . 1 . . . . Garrison Access Hacks 7 | . . . . . 1 . 1 . 2 . 1 . 1 . 1 . . . . Unlock Access 6 | . . . . . 1 . 1 . 1 . 1 . 1 . 1 . . . . Coupler Status 1 | . . . . . . . . . 1 . . . . . . . . . . Unauthorized Hacks 46 | . 3 . . . 7 . 8 . 1 . 4 . 14 . 9 . . . . Terminals 28 | . 3 . . . 6 . 6 . . . 1 . 7 . 5 . . . . Track 2 | . . . . . . . . . . . . . 2 . . . . . . Assimilate 8 | . . . . . 3 . 2 . . . . . 1 . 2 . . . . Botnet 13 | . 2 . . . 3 . 3 . . . . . 3 . 2 . . . . Disrupt 2 | . . . . . . . 1 . . . 1 . . . . . . . . Operators 3 | . 1 . . . . . . . . . . . 1 . 1 . . . . Fabricators 6 | . . . . . . . . . 1 . 3 . 2 . . . . . . Report 1 | . . . . . . . . . . . 1 . . . . . . . . Siphon 3 | . . . . . . . . . 1 . 1 . 1 . . . . . . Haulers 1 | . . . . . . . . . . . 1 . . . . . . . . Download 1 | . . . . . . . . . . . . . 1 . . . . . . Repair Stations . | . . . . . . . . . . . . . . . . . . . . Recycling Units 4 | . . . . . . . 1 . . . . . 2 . 1 . . . . Reject 2 | . . . . . . . 1 . . . . . 1 . . . . . . Recyclers 2 | . . . . . . . . . . . . . 1 . 1 . . . . Scanalyzers . | . . . . . . . . . . . . . . . . . . . . Garrison Access 8 | . . . . . 1 . 1 . . . . . 3 . 3 . . . . Broadcast 1 | . . . . . . . . . . . . . 1 . . . . . . Reprogram 5 | . . . . . 1 . 1 . . . . . 1 . 2 . . . . Watchers 2 | . . . . . . . . . . . . . 1 . 1 . . . . Data Cores Recovered . | . . . . . . . . . . . . . . . . . . . . Used . | . . . . . . . . . . . . . . . . . . . . Hacking Detections 63 | . 2 . . . 8 . 10 . 7 . 4 . 17 . 14 1 . . . Full Trace Events 3 | . . . . . . . . . 1 . . . . . 2 . . . . Feedback Events 1 | . . . . . . . . . 1 . . . . . . . . . . Corruption 1 | . . . . . . . . . 1 . . . . . . . . . . Feedback Blocked . | . . . . . . . . . . . . . . . . . . . . Robot Schematics Acquired 3 | . . . . . . . . . . . . . 3 . . . . . . Robots Built . | . . . . . . . . . . . . . . . . . . . . Matter . | . . . . . . . . . . . . . . . . . . . . Time . | . . . . . . . . . . . . . . . . . . . . Total Robot Build Rating . | . . . . . . . . . . . . . . . . . . . . Part Schematics Acquired 16 | . . . . . 2 . 1 . 1 . . . 7 . 1 . . 4 . Parts Built 6 | . . . . . . . . . 3 . 1 . 2 . . . . . . Matter 845 | . . . . . . . . . 343 . 109 . 159 . 234 . . . . Time 427 | . . . . . . . . . 131 . 73 . 106 . 117 . . . . Total Part Build Rating 32 | . . . . . . . . . 17 . 3 . 12 . . . . . . Parts Repaired 5 | . . . . . 1 . . . 2 . . . 1 . 1 . . . . Time 118 | . . . . . 26 . . . 41 . . . 20 . 31 . . . . Parts Recycled . | . . . . . . . . . . . . . . . . . . . . Recycled Matter . | . . . . . . . . . . . . . . . . . . . . Retrieved Matter . | . . . . . . . . . . . . . . . . . . . . Retrieved Components 8 | . . . . . . . 8 . . . . . . . . . . . . Parts Scanalyzed 5 | . . . . . 1 . . . 2 . . . 2 . . . . . . Part Schematics Acquired 4 | . . . . . 1 . . . 1 . . . 1 . 1 . . . . Parts Damaged . | . . . . . . . . . . . . . . . . . . . . Bothacking | -11 -10 -10 -10 -9 -8 -8 -8 -8 -7 -7 -7 -7 -6 -6 -5 -5 -5 -5 -4 ------------ Run | Scr Mat Min Exi Min Mat Gar Mat Gar Fac Gar Fac Gar Fac Gar Fac Upp Upp Zhi Pro Used RIF Installer 5 | . . . . . . 1 . 1 . 1 . 1 . 1 . . . . . Command Fork 1 | . . . . . . . . . . 1 . . . . . . . . . Threat Obfuscator 1 | . . . . . . . . 1 . . . . . . . . . . . Signal Jammer 1 | . . . . . . . . . . . . 1 . . . . . . . Zone Cloak 1 | . . . . . . . . . . . . . . 1 . . . . . Robots Hacked 45 | . . . . . . . . . . . 1 1 6 13 24 . . . . Non-combat 10 | . . . . . . . . . . . . . 3 . 7 . . . . Combat 35 | . . . . . . . . . . . 1 1 3 13 17 . . . . Robot Hacks Applied 54 | . . . . . . . . . . . 2 1 7 14 30 . . . . parse_system 4 | . . . . . . . . . . . . . 1 1 2 . . . . find_fabricator 2 | . . . . . . . . . . . . . . . 2 . . . . drop_inventory 3 | . . . . . . . . . . . . . . . 3 . . . . find_recycling 1 | . . . . . . . . . . . . . . . 1 . . . . map_route 4 | . . . . . . . . . . . . . 2 . 2 . . . . find_shortcuts 1 | . . . . . . . . . . . . . . . 1 . . . . find_garrison 2 | . . . . . . . . . . . 1 . . . 1 . . . . disrupt_area 1 | . . . . . . . . . . . . . . . 1 . . . . spike_heat 1 | . . . . . . . . . . . . . . 1 . . . . . disable_weapons 2 | . . . . . . . . . . . . . 2 . . . . . . reboot_system 11 | . . . . . . . . . . . . . 2 5 4 . . . . overwrite_iff 16 | . . . . . . . . . . . . . . 4 12 . . . . streamctrl_high 2 | . . . . . . . . . . . . . . 1 1 . . . . formatsys_high 4 | . . . . . . . . . . . 1 1 . 2 . . . . . Relay Couplers Released 22 | . . . . . . . . . . 3 . 7 . 10 2 . . . . Machine Destruction 22 | . . . . . . . . . . 3 . 7 . 10 2 . . . . Attached 17 | . . . . . . . . . . . 1 . 3 4 9 . . . . Robots Rewired . | . . . . . . . . . . . . . . . . . . . . Allies Hacked 2 | . . . . . . . . . . . . . . . 2 . . . . Hacks Repelled . | . . . . . . . . . . . . . . . . . . . . Allies | -11 -10 -10 -10 -9 -8 -8 -8 -8 -7 -7 -7 -7 -6 -6 -5 -5 -5 -5 -4 -------- Run | Scr Mat Min Exi Min Mat Gar Mat Gar Fac Gar Fac Gar Fac Gar Fac Upp Upp Zhi Pro Total Allies 44 | . . . . . 4 . 4 . . . 1 1 3 8 23 . . . . Largest Group 6 | . . . . . 4 4 6 6 5 4 1 1 2 3 6 1 . . . Highest-Rated Group 168 | . . . . . 46 46 72 72 56 39 16 29 58 148 168 24 . . . Highest-Rated Ally 81 | . . . . . 16 16 16 16 16 10 16 29 29 81 49 24 . . . Total Orders 90 | . . . . . 10 14 29 4 17 9 . . . 3 1 3 . . . STAY 49 | . . . . . 6 8 15 2 8 5 . . . 2 1 2 . . . ROAM 1 | . . . . . . . . . . . . . . 1 . . . . . FOLLOW 40 | . . . . . 4 6 14 2 9 4 . . . . . 1 . . . Ally Attacks 165 | . . . . . 9 . . 23 8 . 3 1 15 28 78 . . . . Total Damage 2656 | . . . . . 42 . . 146 50 . 14 . 246 627 1531 . . . . Kills 18 | . . . . . . . . 3 . . . . 3 3 9 . . . . Allies Corrupted . | . . . . . . . . . . . . . . . . . . . . Allies Melted 1 | . . . . . . . . . . . . . . 1 . . . . . Intel | -11 -10 -10 -10 -9 -8 -8 -8 -8 -7 -7 -7 -7 -6 -6 -5 -5 -5 -5 -4 ------- Run | Scr Mat Min Exi Min Mat Gar Mat Gar Fac Gar Fac Gar Fac Gar Fac Upp Upp Zhi Pro Robot Analysis Total 8 | . . . . . 1 . . . 1 . . . 2 . . . . 4 . Derelict Logs Recovered 7 | . . . . 2 . . . . . . . . . . . 2 2 . 1 Drone Launches . | . . . . . . . . . . . . . . . . . . . . Drone Recoveries . | . . . . . . . . . . . . . . . . . . . . Exploration | -11 -10 -10 -10 -9 -8 -8 -8 -8 -7 -7 -7 -7 -6 -6 -5 -5 -5 -5 -4 ------------- Run | Scr Mat Min Exi Min Mat Gar Mat Gar Fac Gar Fac Gar Fac Gar Fac Upp Upp Zhi Pro Turns Passed 15244 | 74 149 207 352 200 1029 1144 1659 297 800 702 1232 479 1384 1240 2365 601 549 466 315 Spaces Moved 8244 | 48 100 145 273 134 435 472 833 175 478 431 862 251 830 672 1159 299 225 236 186 Core 33 | 4 . . . . . 19 . . . . . . . . 10 . . . . Treads 1649 | . . . . . . 133 140 . . . . . . . 555 299 225 184 113 Legs 6435 | 44 100 145 273 134 435 320 693 175 478 431 862 251 830 672 592 . . . . Wheels . | . . . . . . . . . . . . . . . . . . . . Hover 127 | . . . . . . . . . . . . . . . 2 . . 52 73 Flight . | . . . . . . . . . . . . . . . . . . . . Fastest Speed 38 | 50 120 120 120 150 150 50 120 130 130 120 120 120 120 120 120 180 180 96 38 Average Speed 141 | 114 120 120 125 150 150 171 130 130 135 125 120 123 126 134 157 180 192 177 140 Slowest Speed 1400 | 120 120 150 150 150 210 210 180 130 160 130 120 150 150 150 1400 180 240 240 200 Overloaded Moves 63 | . . . . . . . . . . . . . . . . . . . 63 Propulsion Burnouts . | . . . . . . . . . . . . . . . . . . . . Robots Hopped . | . . . . . . . . . . . . . . . . . . . . Cave-ins Triggered . | . . . . . . . . . . . . . . . . . . . . Exploration Rate (%) 40 | 4 31 35 63 40 34 55 62 40 15 53 19 36 26 81 29 56 39 63 37 Regions Visited 19 Branch Regions 7 Pre-discovered Areas 5 | . . . . 1 . . . . . . . . . . . 1 . 3 . Known Exits Taken 6 | . . . . 1 1 . 1 . 1 . 1 . 1 . . . . . . Unknown Exits Taken 8 | 1 1 1 1 . . . . . . . . . . . 1 1 1 1 . Scrap Searched 6 | . . . . . . . . . . . . . . . . 4 2 . . Spaces Dug 81 | . . . . . . . . . . . 14 . 23 1 38 . 5 . . Terrain Destroyed 587 | . . . . . 42 3 . . 33 5 75 . 123 3 208 28 64 . 3 Melee 41 | . . . . . . . . . . . . . 22 1 13 . 5 . . Projectile 49 | . . . . . . . . . . 1 1 . 2 2 30 1 9 . 3 AOE 497 | . . . . . 42 3 . . 33 4 74 . 99 . 165 27 50 . . Terrain Rammed . | . . . . . . . . . . . . . . . . . . . . Walls Destroyed . | . . . . . . . . . . . . . . . . . . . . Machines Disabled . | . . . . . . . . . . . . . . . . . . . . Actions | -11 -10 -10 -10 -9 -8 -8 -8 -8 -7 -7 -7 -7 -6 -6 -5 -5 -5 -5 -4 --------- Run | Scr Mat Min Exi Min Mat Gar Mat Gar Fac Gar Fac Gar Fac Gar Fac Upp Upp Zhi Pro Total 10953 | 59 110 169 284 133 728 741 1338 231 592 527 1042 367 1069 888 1533 346 283 283 230 Wait 1306 | . . 14 . . 216 161 407 35 38 3 92 47 96 70 95 30 1 . 1 Move 8228 | 47 99 144 272 133 434 471 832 174 478 430 862 250 830 671 1158 298 224 235 186 Hop . | . . . . . . . . . . . . . . . . . . . . Pick Up 210 | 2 . 2 4 . 5 10 12 3 14 8 36 14 25 16 36 4 8 8 3 Fast Attach 91 | 7 . 2 . . 7 13 6 . 4 1 3 2 5 1 20 . 3 15 2 Attach 109 | . . . 1 . 3 6 3 3 7 11 6 5 8 9 30 2 5 2 8 Detach 42 | . . . . . 1 4 . . 3 4 5 . 5 3 11 1 1 2 2 Swap 155 | . 1 . 2 . 3 3 8 1 9 5 12 9 20 30 40 2 3 3 4 Drop 147 | . . . 5 . 2 9 20 3 11 2 9 5 17 8 21 1 4 18 12 Fire 463 | 3 10 7 . . 57 54 50 10 28 55 15 30 8 37 53 8 29 . 9 Melee 175 | . . . . . . . . . . . 2 . 55 42 69 . 5 . 2 Ram . | . . . . . . . . . . . . . . . . . . . . Kick . | . . . . . . . . . . . . . . . . . . . . Crush 1 | . . . . . . . . . . . . . . . . . . . 1 Escape Stasis 25 | . . . . . . 10 . 2 . 8 . 5 . . . . . . . Rewire 1 | . . . . . . . . . . . . . . 1 . . . . . Trap . | . . . . . . . . . . . . . . . . . . . . Miscellaneous . | . . . . . . . . . . . . . . . . . . . . Route ------- -11/Scrapyard -10/Materials -10/Mines (discovered 2 exits: [*Mat] / *Exi) -10/Exiles -9/Mines (discovered 2 exits: *Mat x2) -8/Materials (discovered 2 exits: *Fac / Gar) -8/Garrison (discovered 3 exits: *Mat x3) -8/Materials (discovered 3 exits: *Fac x2 / Gar) -8/Garrison (discovered 2 exits: *Fac x2) -7/Factory (discovered 3 exits: *Fac / [Low] / Gar) -7/Garrison (discovered 2 exits: *Fac x2) -7/Factory (discovered 2 exits: [*Low] / Gar) -7/Garrison -6/Factory (discovered 3 exits: *Fac / *Low / Gar) -6/Garrison (discovered 3 exits: *Fac x3) -5/Factory (discovered 3 exits: *Fac / *Upp x2) -5/Upper Caves -5/Upper Caves -5/Zhirov -4/Proximity Caves (discovered 1 exit: *Fac) History --------- Turn | Location | Event 42 | -11/Scrapyard | Discovered new exit (range 15) 75 | -11/Scrapyard | Entered Materials 195 | -10/Materials | Met 8R-AWN 203 | -10/Materials | Discovered new exit (range 16) 224 | -10/Materials | Entered Mines 225 | -10/Mines | Followed 8R-AWN into the Mines 265 | -10/Mines | Discovered new exit (range 9) 267 | -10/Mines | Assembled infested the area 300 | -10/Mines | Build established: Mutant 344 | -10/Mines | Lost 3 parts (1p1n1w) 426 | -10/Mines | Discovered new exit (range 5) 431 | -10/Mines | Entered Exiles 460 | -10/Exiles | Welcomed by 8R-AWN 483 | -10/Exiles | Met EX-HEX 520 | -10/Exiles | Met EX-BIN 533 | -10/Exiles | Aligned with FarCom system 535 | -10/Exiles | Given EX-Vault access code 562 | -10/Exiles | Opened EX-Vault 574 | -10/Exiles | Found Lightpack 2.0 586 | -10/Exiles | Found AWS/Gauss 591 | -10/Exiles | Found AWS/Thermal 616 | -10/Exiles | Warned to stay clear of 0b10 Research branches 647 | -10/Exiles | Met EX-DEC 765 | -10/Exiles | Discovered new exit (range 14) 783 | -10/Exiles | Stole three prototypes: Lightpack 2.0, AWS/Thermal, AWS/Gauss 783 | -10/Exiles | Entered Mines 794 | -9/Mines | Learned location of Storage (-9) 855 | -9/Mines | Identified exit to Materials 947 | -9/Mines | Discovered exit to Materials (range 2) 983 | -9/Mines | Entered Materials 983 | -8/Materials | Evolved 4 slots: Utility x4 1408 | -8/Materials | Discovered new exit (range 14) 1688 | -8/Materials | Repaired Aluminum Leg 1842 | -8/Materials | Destroyed 9 combat bots 1857 | -8/Materials | Identified exit to Garrison 1971 | -8/Materials | Garrison activated, responded to threat 2012 | -8/Materials | Entered Garrison 2012 | -8/Garrison | Accompanied by 4 allies 2074 | -8/Garrison | Triggered checkpoint 2074 | -8/Garrison | Triggered checkpoint 2193 | -8/Garrison | Discovered new exit (range 8) 2292 | -8/Garrison | Triggered checkpoint 2430 | -8/Garrison | Lost 5 parts (1n3u1w) 2517 | -8/Garrison | Discovered new exit (range 11) 2707 | -8/Garrison | Build established: Scavenger-Mutant 2892 | -8/Garrison | Core integrity fell below 50% 2925 | -8/Garrison | Lost 3 parts (1p1n1u) 3032 | -8/Garrison | Discovered new exit (range 10) 3055 | -8/Garrison | Installed Relay Interface Framework 3156 | -8/Garrison | Entered Materials 3156 | -8/Materials | Accompanied by 3 allies 3721 | -8/Materials | Build established: Mutant 3788 | -8/Materials | Discovered new exit (range 5) 3794 | -8/Materials | Identified exit to Factory 3809 | -8/Materials | Central database locked down 4205 | -8/Materials | Discovered exit to Factory (range 16) 4789 | -8/Materials | Identified exit to Garrison 4815 | -8/Materials | Entered Garrison 4815 | -8/Garrison | Accompanied by 6 allies 4878 | -8/Garrison | Triggered checkpoint 4880 | -8/Garrison | Triggered checkpoint 4924 | -8/Garrison | Build established: Commander-Mutant 4965 | -8/Garrison | Discovered exit to Factory (range 8) 5081 | -8/Garrison | Discovered exit to Factory (range 10) 5099 | -8/Garrison | Expanded RIF knowledge: Threat Obfuscation 5112 | -8/Garrison | Entered Factory 5112 | -7/Factory | Accompanied by 5 allies 5112 | -7/Factory | Evolved 2 slots: Utility x2 5114 | -7/Factory | FarCom data flow suspended 5173 | -7/Factory | Discovered new exit (range 17) 5246 | -7/Factory | Repaired Imp. Titanium Leg 5268 | -7/Factory | Repaired Transmission Jammer 5446 | -7/Factory | Fabricated System Shield? 5640 | -7/Factory | Destroyed 7 combat bots 5800 | -7/Factory | Local fabrication network quarantined 5826 | -7/Factory | Fabricated Myomer Leg (x2) 5896 | -7/Factory | Discovered new exit (range 19) 5912 | -7/Factory | First assault squad dispatched 5912 | -7/Factory | Identified exit to Garrison 5912 | -7/Factory | Entered Garrison 5912 | -7/Garrison | Accompanied by 4 allies 6050 | -7/Garrison | Triggered checkpoint 6059 | -7/Garrison | Triggered checkpoint 6112 | -7/Garrison | Triggered checkpoint 6136 | -7/Garrison | Discovered new exit (range 13) 6150 | -7/Garrison | Identified exit to Factory 6260 | -7/Garrison | Triggered checkpoint 6291 | -7/Garrison | Lost 3 parts (1p2w) 6358 | -7/Garrison | Lost 5 parts (1p2n1u1w) 6422 | -7/Garrison | Build established: Mutant 6494 | -7/Garrison | Triggered checkpoint 6495 | -7/Garrison | Core integrity fell below 50% 6526 | -7/Garrison | Garrison Relay disabled 6581 | -7/Garrison | Discovered exit to Factory (range 10) 6600 | -7/Garrison | Expanded RIF knowledge: Command Fork 6614 | -7/Garrison | Entered Factory 6754 | -7/Factory | Fabricated System Shield? 7044 | -7/Factory | Build established: Hauler-Mutant 7226 | -7/Factory | Discovered new exit (range 12) 7846 | -7/Factory | Identified exit to Garrison 7846 | -7/Factory | Entered Garrison 7864 | -7/Garrison | Triggered checkpoint 7924 | -7/Garrison | Garrison Relay disabled 7986 | -7/Garrison | Triggered checkpoint 8185 | -7/Garrison | Discovered new exit (range 10) 8202 | -7/Garrison | Expanded RIF knowledge: Signal Jamming 8224 | -7/Garrison | Triggered checkpoint 8266 | -7/Garrison | Garrison Relay disabled 8325 | -7/Garrison | Entered Factory 8325 | -6/Factory | Evolved 2 slots: Utility x2 8535 | -6/Factory | Build established: Bothacker-Mutant 8667 | -6/Factory | Repaired Myomer Leg 8877 | -6/Factory | Fabricated Adv. Shield Generator? 9252 | -6/Factory | Discovered new exit (range 10) 9441 | -6/Factory | Discovered new exit (range 13) 9457 | -6/Factory | Identified exit to Lower Caves 9547 | -6/Factory | Found Prototype Launcher 9556 | -6/Factory | Identified Scatter Rocket Array 9709 | -6/Factory | Identified exit to Garrison 9709 | -6/Factory | Entered Garrison 9709 | -6/Garrison | Accompanied by 1 ally 9742 | -6/Garrison | Triggered checkpoint 9753 | -6/Garrison | Garrison Relay disabled 9839 | -6/Garrison | Spotted B-75 Beast 9843 | -6/Garrison | Triggered checkpoint 9942 | -6/Garrison | Triggered checkpoint 10253 | -6/Garrison | Discovered new exit (range 12) 10282 | -6/Garrison | Destroyed B-75 Beast 10346 | -6/Garrison | Triggered checkpoint 10359 | -6/Garrison | Garrison Relay disabled 10490 | -6/Garrison | Triggered checkpoint 10595 | -6/Garrison | Discovered new exit (range 11) 10658 | -6/Garrison | Triggered checkpoint 10741 | -6/Garrison | Build established: Botlord-Mutant 10768 | -6/Garrison | Discovered new exit (range 19) 10803 | -6/Garrison | Expanded RIF knowledge: Zone Cloak 10864 | -6/Garrison | Garrison Relay disabled 10949 | -6/Garrison | Entered Factory 10949 | -5/Factory | Evolved 2 slots: Utility x2 11258 | -5/Factory | Build established: Botlord-Assassin 11406 | -5/Factory | Lost 4 parts (1n2u1w) 11496 | -5/Factory | Repaired Myomer Leg 11559 | -5/Factory | Spotted B-75 Beast 11609 | -5/Factory | Discovered new exit (range 19) 11827 | -5/Factory | Lost 4 parts (2n1u1w) 11827 | -5/Factory | Identified exit to Garrison 11849 | -5/Factory | First assault squad dispatched 11905 | -5/Factory | Lost 4 parts (2n1u1w) 11932 | -5/Factory | Build established: Botlord-Mutant 12004 | -5/Factory | System corruption reached 10% 12042 | -5/Factory | Core integrity fell below 50% 12074 | -5/Factory | Lost 5 parts (2n3u) 12197 | -5/Factory | Lost 5 parts (2n3u) 12201 | -5/Factory | Destroyed 7 combat bots 12295 | -5/Factory | Build established: Bothacker-Mutant 12615 | -5/Factory | Build established: Bothacker-Assassin 12734 | -5/Factory | Discovered new exit (range 15) 12757 | -5/Factory | Core integrity fell below 20% 12951 | -5/Factory | Discovered new exit (range 16) 13065 | -5/Factory | P-70 Sage assimilated allied G-50 Soldier 13080 | -5/Factory | Fabricated Quantum Capacitor? 13091 | -5/Factory | Build established: Bothacker-Mutant 13314 | -5/Factory | Entered Upper Caves 13314 | -5/Upper Caves | Accompanied by 1 ally 13341 | -5/Upper Caves | Learned 4 Factory zone layouts 13617 | -5/Upper Caves | Learned location of Armory (-4) 13843 | -5/Upper Caves | Discovered new exit (range 20) 13915 | -5/Upper Caves | Entered another Upper Caves area 13917 | -5/Upper Caves | Attracted the attention of an 0b10 checkpoint 13952 | -5/Upper Caves | Encountered a Warlord checkpoint 14134 | -5/Upper Caves | Learned Factory emergency access door positions 14204 | -5/Upper Caves | Lost 5 parts (2u3w) 14259 | -5/Upper Caves | Attacked by a delusional Derelict stockpiling parts 14300 | -5/Upper Caves | Spotted V3-HD8(f) 14301 | -5/Upper Caves | Encountered a Master Thief 14301 | -5/Upper Caves | Spotted WP-PTX(f) 14302 | -5/Upper Caves | Encountered a Master Thief 14304 | -5/Upper Caves | AWS/Thermal stolen by Master Thief 14315 | -5/Upper Caves | Destroyed V3-HD8(f) 14349 | -5/Upper Caves | Discovered new exit (range 21) 14406 | -5/Upper Caves | Learned Factory non-interactive machine intel 14464 | -5/Upper Caves | Entered Zhirov 14464 | -5/Zhirov | Discovered new exit (range 3) 14501 | -5/Zhirov | Met Zhirov 14539 | -5/Zhirov | Learned location of Quarantine (-2) 14539 | -5/Zhirov | Learned location of Testing (-3) 14539 | -5/Zhirov | Learned location of Command (-1) 14575 | -5/Zhirov | Zhirov requested help retrieving the SGEMP Prototype 14667 | -5/Zhirov | Found Alien Artifact 14667 | -5/Zhirov | Identified Integrated Reactor 14667 | -5/Zhirov | Installed Integrated Reactor, increased core energy generation (+10) 14930 | -5/Zhirov | Entered Proximity Caves 15099 | -4/Proximity Caves | Identified exit to Factory 15110 | -4/Proximity Caves | Spotted 1N-RNL(f) 15111 | -4/Proximity Caves | Encountered a Master Thief 15112 | -4/Proximity Caves | Exp. Core Shielding stolen by Master Thief 15214 | -4/Proximity Caves | Spotted B-86 Titan 15215 | -4/Proximity Caves | Entered a huge 0b10 base via the front door 15245 | -4/Proximity Caves | Destroyed by G-67 Veteran with Plasma Rifle Last Messages --------------- 15197_ Dropped Fusion Compressor. 15197_ Dropped Imp. Cooling System. 15198_ Dropped Com. Battery. 15199_ Dropped Adv. ECM Suite. 15200_ Dropped Hcp. Storage Unit. 15202_ Acquired Adv. ECM Suite. 15203_ System corrupted: Heat flow error (+226). 15203_ Acquired Fusion Compressor. 15214_ Penetrated by Slug. 15214_ Slug penetrates Wall. 15214_ Imp. Proton Missile Launcher destroyed. 15214_ Penetrated by Slug. 15214_ Imp. Component Analysis Suite destroyed. 15215_ Y-64 Sentinel: "UNAUTHORIZED DERELICT IN 0B10 PROXIMITY. ENGAGING." 15220_ System corrupted: Matter fused (-8). 15229_ G-67 Veteran springs to life. 15231_ Acquired Phasing Sabre. 15241_ Cld. Plasma Cannon destroyed. 15244_ Mic. Fission Core destroyed. 15245_ Imp. Core Shielding destroyed. Map ----- +----------------------------------------------------+ | | | | | | | | | | | | | ?????????????##?#?##?#??##???#??#???#?#??????????? | | ???????????#?#??##?#?##?????????##?????#?????????? | | ??????????#?????????#??###??????###?#?#?#????????? | | ??????#???###?#?#?#???##?##????#?##?#####????????? | | ????????#??????#??#???#????????#?#???##?????#????? | | ??????#?#???#???#??????#??#???##?#???#?#?????????? | | ????????#??##?#?##???????#?#?#?#??##????#??#?????? | | ??????#???#?????????#?#???#???#?#???#???#?#?##???? | | ???????#?#?#?#????#??##?##?#?????#??##?#?##??#???? | | ??##?#???##?#####??#?#??#???####??#??????????????? | | ???##???????????#???#?#?#????#??##??????#???##???? | | ??##?????#?##???##?????????#?##????#?#??##???????? | | ??????##????#????#?#?#??????#?##??#?#???###??????? | | ?#?????##??????#?#####?##?#??#??#?#???????###????? | | ???#??##????#####?????????#??????#???##???#?##?#?? | | ?#?####?????#?#?#????##?????##?#?##?????##???????? | | #?#?#?????????#?#???#?#??#??#?#?##??#??????##????# | | ###########?????#???#########???#????#?#??????##?? | | ?" ? ? ??# ??#/ ]]]]#?????????###???##???# | | ?"?? ?? ?? ? ??#/g @ #? ?? ?? ?#?#?##?##?# | | " ? ??? # ?? ??#bgg|||#???? " ???##??????# | | " ## #####+######g##### "???##??#?#???? | | " ##?#??#?##?? | | < #??????????? | | h ###???##?#?? | | ## ###### ###+###### """#??????????? | | ? ? ? ?# # ? ?#? ? "??#?????###??? | | ?? ????? ?? # # ? ?# ?? # " ??#????#????? | | ????? ????? # #? ? ?? ???? " ????##??#???# | | # ??? ????? # # ? # ??#?##""##?##??#?#?#??#? | | # ??? ??# "??# # ????#??????##???###??#????????? | | # ? ? ?? "??# # ????# ??#??????????#?#???????? | | #?? ?? ?? "?"# # ?? #?? ??###? ??????##???????? | | #? ??????###### #######?#?????? ?#?#?#?????????? | | #? ?""??# #?? ???? #??????#?##?#?????? | | #?? ""F??# #?? ?? ??#? ?#?#?##????????? | | # ?""???# # ?? ? ?# ?#?#?????##?????? | | # ? ? ??# # ????? ?? ??#?##?????????? | | ########## """" ##??+??#?# ???#????????????? | | """" ?? ? ??#????#?????????? | | """" ????#??????????????? | | ########## """" ####### #??#?#????????????? | | ########## ##???## ?? ????????????????? | | #??#? #?????? ???????????????????? | +----------------------------------------------------+ Best States ------------- Heat Dissipation 67 Energy Generation 28 Energy Capacity 470 Matter Stores 300 Matter Capacity 300 Sight Range 22 Robot Scan Range 13 Terrain Scan Range 24 Terrain Scan Density 210 Jamming Range 14 Cloak Strength 3 Additional Mass Support 9 EM Shielding 2 Armor Coverage 450 Resistance: EM 15 Core Shielding 40 Utility Shielding 33 Phase Shifting 5 Evasion (%) 57 Targeting Accuracy 8 Recoil Reduction 2 Offensive Hacking 20 Defensive Hacking 20 Relay Coupler Types 101 Relay Coupler Value 5 Item Schematics ----------------- Launcher Guidance Computer | -8/Materials | Scanalyzed Hacking Suite | -8/Materials | Hacked System Shield | -8/Materials | Hacked Imp. Titanium Leg | -7/Factory | Scanalyzed Hyp. Gauss Cannon | -6/Factory | Hacked Imp. Gravmag System | -6/Factory | Hacked Imp. Powered Armor | -6/Factory | Hacked Drone Bay | -6/Factory | Hacked Matter Compressor | -6/Factory | Hacked Quantum Capacitor | -6/Factory | Hacked Myomer Leg | -6/Factory | Scanalyzed Ion Burst Cannon | -5/Factory | Scanalyzed Assault Drone Bay | -5/Zhirov | Free Exp. Heat Sink | -5/Zhirov | Free Exp. Optical Array | -5/Zhirov | Free Imp. Arc Thrower | -5/Zhirov | Free Robot Schematics ------------------ R-06 Scavenger | -6/Factory | Hacked E-15 Imp | -6/Factory | Downloaded G-50 Soldier | -6/Factory | Hacked Fabricated ------------ System Shield | x1 | -7/Factory Myomer Leg | x2 | -7/Factory | Preloaded System Shield | x1 | -7/Factory Adv. Shield Generator | x2 | -6/Factory | Preloaded Alien Tech Used ----------------- Integrated Reactor Achievements -------------- Assassin Challenges ------------ None Game ------ Seed AntigravBehemothThrower Manual? 0 Play Time 03:47:33 Cumulative 913.5 hours Start 2020.10.07 @ 22:10:46 End 2020.10.08 @ 11:20:06 Sessions 3 Manual Loads 0 Difficulty Rogue Special Mode None Game No. 349 Rogue 349 Adventurer 0 Explorer 0 Win Type - Total 13 Types 12/0/1/0/0/0/0/0/0 Lore% 76 Gallery% 86 Achievement% 69 Wizard Run 0 Options --------- ASCII 0 Keyboard 1 Movement Numpad Keybinds 0 Fullscreen 2 Font 18/SmallcapsGlow Map View 112x50 Tactical HUD 1 Map Filters NONE Filters NONE Steam 1 RUN: 0b0f01d0-e5f7-40a0-b4c1-d4ae973919f3